bitfinex-derivatives/quotes_BNBF0:USTF0_20250521
["timestamp","ask_amount","ask_price","bid_price","bid_amount"]
[1747801783798,2.25985095,661.04,660.33,0.62065037]
[1747801784099,2.25985095,661.04,660.34,1.78708163]
[1747801784397,2.25985095,661.04,660.35,0.62065037]
[1747801784599,2.25985095,661.04,660.36,0.62065037]
[1747801784800,0.978,661.07,660.37,0.62065037]
[1747801785100,0.978,661.07,660.38,0.62065037]
[1747801785300,0.978,661.07,660.39,0.62065037]
[1747801785492,0.978,661.07,660.4,0.62065037]
[1747801785694,0.978,661.07,660.41,0.62065037]
[1747801785897,0.978,661.07,660.42,0.9235032]
[1747801786102,0.978,661.07,660.43,0.62065037]
[1747801786399,0.978,661.07,660.44,1.78708163]
[1747801786598,0.978,661.07,660.45,0.62065037]
[1747801786799,0.978,661.07,660.46,0.62065037]
[1747801787000,0.978,661.07,660.47,1.78708163]
[1747801787200,0.978,661.07,660.48,0.62065037]
[1747801787397,0.978,661.07,660.49,0.62065037]
[1747801787599,0.978,661.07,660.5,0.62065037]
[1747801787798,0.978,661.07,660.48,1.16643126]
[1747801787799,2.25985095,661.06,660.51,0.62065037]
[1747801787996,2.25985095,661.06,660.52,0.62065037]
[1747801788199,2.25985095,661.06,660.15,0.29042344]
[1747801788399,2.25985095,661.06,660.16,0.62140472]
[1747801788703,2.25985095,661.06,660.17,1.78971811]
[1747801789002,2.25985095,661.06,660.18,0.62140472]
[1747801789206,2.25985095,661.06,660.15,0.29042344]
[1747801789207,2.25985095,661.06,660.19,1.78971811]
[1747801789405,2.25985095,661.06,660.2,0.62140472]
[1747801789604,2.25985095,661.06,660.21,0.92425456]
[1747801789904,2.25985095,661.06,660.22,0.62140472]
[1747801790105,2.25985095,661.06,660.23,1.78971811]
[1747801790404,2.25985095,661.06,660.24,0.62140472]
[1747801790607,2.25985095,661.06,660.25,0.62144008]
[1747801790807,2.25985095,661.06,660.26,1.78975347]
[1747801791003,2.25985095,661.06,660.27,0.62144008]
[1747801791208,2.25985095,661.06,660.28,1.78975347]
[1747801791405,2.25985095,661.06,660.29,0.62144008]
[1747801791609,2.25985095,661.0,660.3,1.78976362]
[1747801791809,2.25985095,661.0,660.31,0.62145023]
[1747801792010,2.25985095,661.0,660.32,0.62145023]
[1747801792209,2.25985095,661.0,660.33,0.62145023]
[1747801792410,2.25985095,661.0,660.34,0.92430238]
[1747801792610,2.25985095,661.0,660.35,1.78976593]
[1747801792911,2.25985095,661.0,660.36,1.78976593]
[1747801793210,2.25985095,661.0,660.37,0.62145254]
[1747801793410,2.25985095,660.96,660.38,0.62145254]
[1747801793608,2.25985095,660.96,660.39,0.62145254]
[1747801793809,2.25985095,660.96,660.4,0.62145254]
[1747801794005,2.25985095,660.96,660.41,0.62145254]
[1747801794307,2.25985095,660.96,660.42,1.78967433]
[1747801794504,2.25985095,660.96,660.43,0.62136094]
[1747801794709,2.25985095,660.96,660.44,2.09252417]
[1747801795010,2.25985095,660.96,660.45,0.62136094]
[1747801795308,2.25985095,660.96,660.46,0.62136094]
[1747801795504,2.25985095,660.96,660.47,1.78967433]
[1747801795711,2.25985095,660.96,660.48,0.62136094]
[1747801795911,2.25985095,661.05,660.49,0.62136094]
[1747801796110,2.25985095,661.05,660.5,1.78967433]
[1747801796312,2.25985095,661.05,660.51,0.62136094]
[1747801796612,2.25985095,661.05,660.52,0.62136094]
[1747801796805,2.25985095,661.05,660.53,0.62136094]
[1747801797009,2.25985095,661.05,660.54,0.62135695]
[1747801797209,2.25985095,661.05,660.55,1.78932378]
[1747801797509,2.25985095,661.05,660.56,0.62135695]
[1747801797708,2.25985095,661.05,660.57,0.62135695]
[1747801797907,2.25985095,661.05,660.58,1.78932378]
[1747801798110,2.25985095,661.05,660.59,0.62135695]
[1747801798310,2.25985095,661.05,660.6,0.62135695]
[1747801798508,2.25985095,661.05,660.61,0.62135695]
[1747801798806,2.25985095,661.05,660.62,0.62135695]
[1747801799011,2.25985095,661.05,660.63,0.62135695]
[1747801799212,0.978,661.07,660.64,1.78932378]
[1747801799410,0.978,661.07,660.65,0.62002595]
[1747801799612,0.978,661.07,660.66,0.62002595]
[1747801799811,0.978,661.07,660.67,0.62002595]
[1747801800015,0.978,661.07,660.68,0.62002595]
[1747801800211,0.978,661.07,660.69,0.62002595]
[1747801800514,0.978,661.07,660.35,0.29042344]
[1747801800515,0.978,661.07,660.7,0.62002595]
[1747801800714,0.978,661.07,660.35,0.29042344]
[1747801800915,0.978,661.07,660.36,0.61977653]
[1747801801115,0.978,661.07,660.37,0.61977653]
[1747801801313,0.978,661.07,660.38,1.78544765]
[1747801801516,0.978,661.07,660.39,0.61977653]
[1747801801718,0.978,661.07,660.4,1.78544765]
[1747801801913,0.978,661.07,660.41,0.61977653]
[1747801802117,0.978,661.07,660.42,0.61977653]
[1747801802317,0.978,661.07,660.43,1.78544765]
[1747801802520,0.978,661.07,660.44,1.78544765]
[1747801802719,0.978,661.07,660.45,0.61977653]
[1747801802921,0.978,661.07,660.46,0.61977653]
[1747801803121,0.978,661.07,660.47,2.08819566]
[1747801803322,0.978,661.07,660.48,0.61977653]
[1747801803620,0.978,661.07,660.49,0.61977653]
[1747801803814,0.978,661.07,660.5,1.78544765]
[1747801804018,0.978,661.07,660.51,0.61977653]
[1747801804218,0.978,661.07,660.52,1.78544765]
[1747801804520,0.978,661.07,660.53,0.61977653]
[1747801804820,0.978,661.07,660.54,1.78544765]
[1747801805021,0.978,661.07,660.55,0.61977653]
[1747801805222,2.25985095,661.3,660.56,0.61977653]
[1747801805422,2.25985095,661.3,660.57,1.78544765]
[1747801805721,2.25985095,661.3,660.58,0.61889341]
[1747801805921,2.25985095,661.3,660.59,1.78456453]
[1747801806117,2.25985095,661.3,660.6,1.78456453]
[1747801806321,2.25985095,661.3,660.61,0.61889341]
[1747801806518,2.25985095,661.3,660.62,0.61889341]
[1747801806717,2.25985095,661.3,660.63,0.61889341]
[1747801806924,2.25985095,661.42,660.64,1.78456453]
[1747801807122,2.25985095,661.42,660.65,0.61889341]
[1747801807320,2.25985095,661.42,660.66,0.61865035]
[1747801807521,2.25985095,661.42,660.67,0.61865035]
[1747801807716,2.25985095,661.42,660.3,0.29042344]
[1747801807921,2.25985095,661.42,660.31,0.61861494]
[1747801808117,2.25985095,661.42,660.32,0.61861494]
[1747801808321,2.25985095,661.42,660.33,0.61861494]
[1747801808526,2.25985095,661.42,660.34,2.08558088]
[1747801808723,2.25985095,661.42,660.35,0.61861494]
[1747801809021,2.25985095,661.42,660.36,1.78284911]
[1747801809222,0.944,661.41,660.37,0.61861494]
[1747801809425,0.944,661.41,660.38,1.78284911]
[1747801809722,0.944,661.41,660.39,0.61861494]
[1747801809930,0.944,661.41,660.4,1.78284911]
[1747801810229,0.944,661.41,660.41,0.61861494]
[1747801810430,0.944,661.41,660.42,1.78284911]
[1747801810626,0.944,661.41,660.43,0.61861494]
[1747801810831,0.944,661.41,660.44,0.61899087]
[1747801811027,0.944,661.41,660.45,0.61899087]
[1747801811333,0.944,661.41,660.46,0.61899087]
[1747801811529,0.944,661.41,660.47,0.61899087]
[1747801811728,0.944,661.41,660.16,0.29042344]
[1747801811926,0.944,661.41,660.17,1.7844201]
[1747801812133,0.944,661.41,660.18,0.6191512]
[1747801812332,0.944,661.41,660.19,1.7844201]
[1747801812532,0.944,661.41,660.2,0.61917657]
[1747801812733,0.944,661.41,660.21,0.61917657]
[1747801812934,0.944,661.41,660.22,0.61917657]
[1747801813235,2.25985095,661.21,660.23,1.78444547]
[1747801813531,2.25985095,661.21,660.24,0.61917657]
[1747801813833,2.25985095,661.21,660.25,0.61917657]
[1747801814034,2.25985095,661.21,660.26,0.61917657]
[1747801814228,2.25985095,661.21,660.27,0.92199515]
[1747801814431,2.25985095,661.21,660.28,1.78444547]
[1747801814633,2.25985095,661.21,660.29,0.61917657]
[1747801814934,2.25985095,661.21,660.3,1.78444547]
[1747801815135,2.25985095,661.21,660.31,0.61917657]
[1747801815337,2.25985095,661.21,660.32,1.78444547]
[1747801815634,2.25985095,661.21,660.33,1.78444547]
[1747801815835,2.25985095,661.21,660.34,0.61942118]
[1747801816036,2.25985095,661.21,660.35,1.78469008]
[1747801816335,2.25985095,661.21,660.36,0.61942118]
[1747801816634,2.25985095,661.21,660.37,0.61942118]
[1747801816835,2.25985095,661.21,660.38,0.61942118]
[1747801817031,2.25985095,661.21,660.39,0.61942118]
[1747801817235,2.25985095,661.21,660.4,0.61942118]
[1747801817534,2.25985095,661.21,660.41,0.61942118]
[1747801817735,2.25985095,661.21,660.37,0.30281858]
[1747801817736,2.25985095,661.21,660.42,0.61942118]
[1747801817934,2.25985095,661.21,660.37,0.30281858]
[1747801818129,2.25985095,661.21,660.38,0.61952387]
[1747801818334,2.25985095,661.21,660.39,0.61952387]
[1747801818537,2.25985095,661.21,660.4,0.61952387]
[1747801818729,2.25985095,661.21,660.41,0.61952387]
[1747801818929,2.25985095,661.21,660.37,0.30281858]
[1747801819134,2.25985095,661.21,660.38,0.61951877]
[1747801819435,2.25985095,661.21,660.39,0.61951877]
[1747801819632,2.25985095,661.21,660.4,0.61951877]
[1747801819836,2.25985095,661.25,660.41,0.61951877]
[1747801820029,2.25985095,661.25,660.06,0.26338495]
[1747801820230,2.25985095,661.25,660.07,0.61951222]
[1747801820433,2.25985095,661.25,660.08,0.61951222]
[1747801820633,2.25985095,661.25,660.09,0.92231069]
[1747801820932,2.25985095,661.25,660.1,1.78550267]
[1747801821130,2.25985095,661.25,660.11,0.6192572]
[1747801821332,2.25985095,661.25,660.12,1.78524765]
[1747801821632,2.25985095,661.25,660.13,0.6192572]
[1747801821934,2.25985095,661.25,660.14,1.78524765]
[1747801822131,2.25985095,661.25,660.15,0.6192572]
[1747801822335,2.25985095,661.27,660.16,2.07567109]
[1747801822533,2.25985095,661.27,660.17,0.6192572]
[1747801822734,2.25985095,661.27,660.18,1.16599045]
[1747801822934,2.25985095,661.27,660.19,1.78518207]
[1747801823235,2.25985095,661.27,660.2,1.78518207]
[1747801823436,2.25985095,661.27,660.21,0.61919162]
[1747801823736,2.25985095,661.27,660.22,1.78518207]
[1747801823936,2.25985095,661.27,660.23,1.78518207]
[1747801824237,2.25985095,661.27,660.24,0.61928741]
[1747801824434,2.25985095,661.27,660.25,1.78527786]
[1747801824635,2.25985095,661.27,660.26,0.6192808]
[1747801824835,2.25985095,661.27,660.27,0.6192808]
[1747801825036,2.25985095,661.27,660.28,0.6192808]
[1747801825335,2.25985095,661.27,660.29,0.6192808]
[1747801825536,2.25985095,661.28,660.3,1.78527125]
[1747801825736,2.25985095,661.28,660.31,0.6192808]
[1747801825939,2.25985095,661.28,660.32,0.6192808]
[1747801826138,2.25985095,661.28,660.33,1.78527125]
[1747801826438,2.25985095,661.28,660.34,0.6192808]
[1747801826640,2.25985095,661.28,660.35,0.6192808]
[1747801826836,2.25985095,661.28,660.36,0.6192808]
[1747801827035,2.25985095,661.28,660.37,1.78527125]
[1747801827235,2.25985095,661.28,660.38,0.6192808]
[1747801827437,2.25985095,661.28,660.39,0.6192808]
[1747801827637,2.25985095,661.28,660.4,1.78527125]
[1747801827837,2.25985095,661.28,660.41,0.6192808]
[1747801828037,2.25985095,661.28,660.42,0.6192808]
[1747801828239,2.25985095,661.28,660.43,0.6192808]
[1747801828440,2.25985095,661.28,660.44,0.6192808]
[1747801828639,2.25985095,661.28,660.45,0.6192808]
[1747801828840,2.25985095,661.22,660.13,0.29042344]
[1747801829145,2.25985095,661.22,660.14,1.78545533]
[1747801829441,2.25985095,661.22,660.15,0.61959605]
[1747801829642,2.25985095,661.22,660.16,1.78549445]
[1747801829835,2.25985095,661.22,660.17,1.78549445]
[1747801830037,2.25985095,661.22,660.18,0.61963517]
[1747801830235,2.25985095,661.22,660.19,0.92247421]
[1747801830439,2.25985095,661.22,660.2,1.78549445]
[1747801830637,2.25985095,661.22,660.21,1.78549445]
[1747801830838,2.25985095,661.22,660.22,0.61963517]
[1747801831034,2.25985095,661.22,660.23,0.61963517]
[1747801831240,2.25985095,661.22,660.24,1.78549445]
[1747801831439,2.25985095,661.22,660.25,0.61963517]
[1747801831641,2.25985095,661.22,660.26,1.78549445]
[1747801831840,2.25985095,661.22,660.27,0.61963517]
[1747801832043,2.25985095,661.22,660.28,0.61963517]
[1747801832242,2.25985095,661.22,660.29,1.78549445]
[1747801832542,2.25985095,661.22,660.3,0.61963517]
[1747801832740,2.25985095,661.22,660.31,1.78549445]
[1747801832936,2.25985095,661.22,660.32,0.61957048]
[1747801833143,2.25985095,661.22,660.33,0.61957048]
[1747801833337,2.25985095,661.22,660.34,1.78542976]
[1747801833542,2.25985095,661.22,660.35,0.61957048]
[1747801833837,2.25985095,661.22,660.36,1.78542976]
[1747801834037,2.25985095,661.22,660.37,0.61957048]
[1747801834243,2.25985095,661.22,660.38,1.78542976]
[1747801834445,2.25985095,661.22,660.39,0.61957048]
[1747801834642,2.25985095,661.21,660.4,0.61957048]
[1747801834841,2.25985095,661.21,660.41,0.61957048]
[1747801835041,2.25985095,661.21,660.42,0.61951914]
[1747801835237,2.25985095,661.21,660.37,0.30283904]
[1747801835443,2.25985095,661.21,660.38,0.61950758]
[1747801835637,2.25985095,661.21,660.39,0.61950758]
[1747801835836,2.25985095,661.21,660.4,0.61950758]
[1747801836040,2.25985095,661.21,660.41,0.61950758]
[1747801836241,2.25985095,661.21,660.42,0.61950758]
[1747801836448,2.25985095,661.21,660.06,0.29042344]
[1747801836641,2.25985095,661.21,660.07,1.78454964]
[1747801836844,2.25985095,661.21,660.08,0.61928707]
[1747801837037,2.25985095,661.21,660.09,1.78454964]
[1747801837238,2.25985095,661.21,660.1,0.61928707]
[1747801837438,2.25985095,661.22,660.11,0.61928707]
[1747801837643,2.25985095,661.22,660.12,1.78454964]
[1747801837839,2.25985095,661.22,660.13,0.61928707]
[1747801838142,2.25985095,661.22,660.14,1.78454964]
[1747801838343,2.25985095,661.22,660.15,0.61928707]
[1747801838645,2.25985095,661.22,660.16,0.92212433]
[1747801838844,2.25985095,661.22,660.17,1.78454964]
[1747801839044,2.25985095,661.22,660.18,0.61928707]
[1747801839246,2.25985095,661.22,660.19,0.61928707]
[1747801839545,2.25985095,661.22,660.2,1.78454964]
[1747801839747,2.25985095,661.22,660.21,0.61928707]
[1747801840046,2.25985095,661.22,660.22,1.78454964]
[1747801840241,2.25985095,661.22,660.23,0.61928707]
[1747801840546,2.25985095,661.22,660.24,1.78454964]
[1747801840845,2.25985095,660.98,660.25,1.78454964]
[1747801841045,2.25985095,660.98,660.26,0.61928707]
[1747801841246,2.25985095,660.98,660.27,0.61928707]
[1747801841449,0.96,660.97,660.28,0.61928707]
[1747801841648,0.96,660.97,660.29,1.78454964]
[1747801841844,0.96,660.97,660.3,0.61928707]
[1747801842044,0.96,660.97,660.31,0.61928707]
[1747801842246,0.96,660.97,660.32,1.78454964]
[1747801842443,0.96,660.97,660.33,0.92212433]
[1747801842647,0.96,660.97,660.34,0.61928707]
[1747801842843,0.96,660.97,660.35,0.61928707]
[1747801843048,0.96,660.97,660.36,1.78454964]
[1747801843248,0.96,660.97,660.37,0.61928707]
[1747801843444,0.96,660.97,660.38,0.61907616]
[1747801843645,0.96,660.97,660.39,0.61907616]
[1747801843846,0.96,660.97,660.4,0.61907616]
[1747801844047,0.96,660.97,660.41,0.61907616]
[1747801844242,0.96,660.97,660.42,0.61907616]
[1747801844447,0.96,660.97,660.33,0.30283726]
[1747801844650,0.96,660.97,660.34,0.61907161]
[1747801844851,0.96,660.97,660.35,0.61907161]
[1747801845046,0.96,660.97,660.36,0.61907161]
[1747801845250,0.96,660.97,660.37,1.78381752]
[1747801845444,0.96,660.97,660.38,0.61907161]
[1747801845647,0.96,660.97,660.39,0.61907161]
[1747801845844,0.96,660.97,660.4,0.61907161]
[1747801846050,0.96,660.97,660.41,0.61907161]
[1747801846251,0.96,660.97,660.11,0.29042344]
[1747801846451,0.96,660.97,660.12,0.61908385]
[1747801846647,0.96,660.97,660.13,0.61908385]
[1747801846852,0.96,660.97,660.14,1.16491891]
[1747801847153,0.96,660.97,660.15,0.61909013]
[1747801847352,0.96,660.97,660.16,1.78400904]
[1747801847553,0.96,660.97,660.17,0.61909013]
[1747801847753,0.96,660.97,660.18,0.61909013]
[1747801847954,0.96,660.97,660.19,1.78400904]
[1747801848154,0.96,660.97,660.2,0.61909013]
[1747801848355,0.96,660.97,660.21,0.61909013]
[1747801848554,0.96,660.97,660.22,1.78400904]
[1747801848758,0.96,660.97,660.23,0.61910417]
[1747801849061,0.96,660.97,660.24,1.78402308]
[1747801849254,0.96,660.97,660.25,0.61910417]
[1747801849456,0.96,660.97,660.26,1.78402308]
[1747801849658,0.96,660.97,660.27,0.61910417]
[1747801849859,0.96,660.97,660.28,0.61910417]
[1747801850061,0.96,660.97,660.22,0.30286535]
[1747801850363,0.96,660.97,660.23,1.78479956]
[1747801850563,0.96,660.97,660.24,0.61935734]
[1747801850758,0.96,660.97,660.25,0.61925327]
[1747801850964,0.96,660.97,660.23,1.16544222]
[1747801851365,0.96,660.97,659.84,0.29042344]
[1747801851660,0.96,660.97,659.85,0.61925888]
[1747801851859,0.96,660.97,659.86,0.61925888]
[1747801852065,0.96,660.97,659.87,0.61922075]
[1747801852265,0.96,660.97,659.88,0.61922075]
[1747801852565,0.96,660.97,659.89,1.7844835]
[1747801852766,0.96,660.97,659.9,0.61901167]
[1747801853064,0.96,660.97,659.91,1.7844835]
[1747801853265,2.25985095,660.78,659.92,1.7844835]
[1747801853464,2.25985095,660.78,659.93,0.61901167]
[1747801853664,2.25985095,660.78,659.94,1.7844835]
[1747801853865,2.25985095,660.78,659.95,0.61901167]
[1747801854060,2.25985095,660.78,659.88,0.3029673]
[1747801854061,2.25985095,660.78,659.96,1.7844835]
[1747801854260,2.25985095,660.78,659.97,0.92197897]
[1747801854465,2.25985095,660.78,659.98,0.61901167]
[1747801854661,2.25985095,660.78,659.99,1.7844835]
[1747801854864,2.25985095,660.78,660.0,0.61901167]
[1747801855168,2.25985095,660.78,660.01,1.7844835]
[1747801855369,2.25985095,660.78,660.02,0.61901167]
[1747801855562,2.25985095,660.78,660.03,1.7844835]
[1747801855766,0.96,660.97,660.04,0.61901167]
[1747801855966,0.96,660.97,660.05,0.61901167]
[1747801856166,0.96,660.97,660.06,0.61901167]
[1747801856368,0.96,660.97,660.07,0.61901167]
[1747801856667,0.96,660.97,660.08,1.7844835]
[1747801856865,0.96,660.97,660.09,1.7844835]
[1747801857063,0.96,660.97,660.1,0.61901167]
[1747801857263,0.96,660.97,660.09,1.16547183]
[1747801857468,0.96,660.97,660.1,2.08656856]
[1747801857666,0.96,660.97,660.11,0.61812943]
[1747801857867,0.96,660.97,660.12,0.61812943]
[1747801858067,0.96,660.97,660.13,0.61812943]
[1747801858368,0.96,660.97,660.14,0.61812943]
[1747801858569,0.96,660.97,660.15,0.61812943]
[1747801858768,0.96,660.97,660.16,0.61812943]
[1747801858963,0.96,660.97,660.17,0.61812943]
[1747801859167,0.96,660.97,659.83,0.29042344]
[1747801859464,0.96,660.97,659.84,0.61811085]
[1747801859669,0.96,660.97,659.85,0.61811085]
[1747801859870,0.96,660.97,659.86,0.92104528]
[1747801860066,0.96,660.97,659.87,1.78169977]
[1747801860366,2.25985095,661.01,659.88,0.61811085]
[1747801860564,2.25985095,661.01,659.89,0.61811085]
[1747801860768,2.25985095,661.01,659.9,1.78226227]
[1747801861066,2.25985095,661.03,659.91,0.92160778]
[1747801861272,2.25985095,661.03,659.92,1.78226227]
[1747801861470,2.25985095,661.03,659.93,0.61867335]
[1747801861670,2.25985095,661.03,659.94,0.61867335]
[1747801861865,2.25985095,661.03,659.95,0.61867335]
[1747801862067,2.25985095,661.03,659.96,0.61867335]
[1747801862268,2.25985095,661.03,659.97,0.61867335]
[1747801862466,2.25985095,661.03,659.98,1.78226227]
[1747801862768,2.25985095,661.03,659.99,0.61867335]
[1747801862969,2.25985095,661.03,660.0,0.61867335]
[1747801863165,2.25985095,661.03,660.01,1.78226227]
[1747801863372,2.25985095,661.03,660.02,1.78226227]
[1747801863569,2.25985095,661.03,660.02,1.16358892]
[1747801863873,2.25985095,660.98,660.02,1.46652335]
[1747801864065,2.25985095,660.98,660.02,0.30293443]
[1747801864369,0.806,660.97,660.02,0.30293443]
[1747801864773,0.26353654,660.96,659.73,0.30293443]
[1747801865067,0.26353654,660.96,659.74,0.61906158]
[1747801865272,0.26353654,660.96,659.75,0.61906158]
[1747801865475,0.26353654,660.96,659.76,0.61906158]
[1747801865669,0.26353654,660.96,659.77,1.78488825]
[1747801865971,0.26353654,660.96,659.78,0.61906158]
[1747801866172,0.26353654,660.96,659.79,0.61906158]
[1747801866373,0.26353654,660.96,659.8,1.78488825]
[1747801866574,0.26353654,660.96,659.81,0.61906158]
[1747801866774,0.26353654,660.96,659.82,1.78488825]
[1747801866977,2.25985095,660.92,659.83,0.61879706]
[1747801867172,2.25985095,660.92,659.84,1.78462373]
[1747801867370,2.25985095,660.92,659.85,0.61879706]
[1747801867568,2.25985095,660.92,659.86,1.78462373]
[1747801867776,0.26352756,660.91,659.87,1.78462373]
[1747801867973,0.26352756,660.91,659.88,1.78462373]
[1747801868175,0.26352756,660.91,659.89,0.61879706]
[1747801868370,0.26352756,660.91,659.9,0.61879706]
[1747801868571,0.26352756,660.91,659.91,1.78462373]
[1747801868773,0.26352756,660.91,659.92,0.61879706]
[1747801868973,0.26352756,660.91,659.91,1.16582667]
[1747801869177,0.26352756,660.91,659.93,1.16582667]
[1747801869676,0.26352756,660.91,659.6,0.26352756]
[1747801869878,0.26352756,660.91,659.61,0.61847331]
[1747801870177,2.25985095,660.95,659.62,1.78269191]
[1747801870378,0.26354752,660.9,659.63,0.61847331]
[1747801870678,0.26354752,660.9,659.64,2.08572907]
[1747801870872,2.25985095,660.95,659.65,0.61847331]
[1747801871071,2.25985095,660.95,659.66,1.78269191]
[1747801871274,2.25985095,660.95,659.67,0.61847331]
[1747801871473,2.25985095,660.95,659.68,0.61847331]
[1747801871678,2.25985095,660.95,659.69,0.61847331]
[1747801871879,2.25985095,660.96,659.7,0.61847331]
[1747801872079,2.25985095,660.96,659.71,0.61817269]
[1747801872278,2.25985095,660.96,659.72,0.61817269]
[1747801872474,2.25985095,660.96,659.73,1.78239129]
[1747801872677,2.25985095,660.96,659.74,0.61817269]
[1747801872878,2.25985095,660.96,659.75,1.78239129]
[1747801873074,2.25985095,660.96,659.76,0.61817269]
[1747801873277,2.25985095,660.96,659.77,1.78239129]
[1747801873476,2.25985095,660.96,659.78,0.61817269]
[1747801873678,2.25985095,660.96,659.79,1.78239129]
[1747801873878,2.25985095,660.96,659.8,0.61804311]
[1747801874076,2.25985095,660.96,659.81,0.61804311]
[1747801874280,0.806,660.97,659.82,1.78226171]
[1747801874481,0.26352556,660.95,659.83,0.61804311]
[1747801874780,0.26352556,660.95,659.84,1.78226171]
[1747801874981,0.26352556,660.95,659.85,0.61804311]
[1747801875183,0.26352556,660.95,659.86,0.61804311]
[1747801875384,0.26352556,660.95,659.87,1.78226171]
[1747801875681,0.26352556,660.95,659.88,1.78213773]
[1747801875883,0.26352556,660.95,659.89,0.61791913]
[1747801876179,0.806,660.97,659.9,1.1642186]
[1747801876382,0.806,660.97,659.91,1.1642186]
[1747801876883,0.806,660.97,659.92,1.1642186]
[1747801877484,0.2635086,660.96,659.92,1.1642186]
[1747801877685,0.2635086,660.96,659.61,0.2635086]
[1747801877888,0.2635086,660.96,659.62,0.61778564]
[1747801878086,0.2635086,660.96,659.63,0.61778564]
[1747801878387,0.2635086,660.96,659.64,1.78083613]
[1747801878587,0.2635086,660.96,659.65,0.61778564]
[1747801878789,0.2635086,660.96,659.66,2.08386703]
[1747801878989,0.2635086,660.96,659.67,0.61778564]
[1747801879189,0.806,660.97,659.68,0.61778564]
[1747801879386,0.26353355,660.96,659.69,1.78083613]
[1747801879590,0.26353355,660.96,659.7,0.61778564]
[1747801879888,0.26353355,660.96,659.71,1.78083613]
[1747801880184,0.26353355,660.96,659.72,1.78083613]
[1747801880389,0.26353355,660.96,659.73,0.61778564]
[1747801880581,0.26353355,660.96,659.74,1.16305049]
[1747801880786,0.26353355,660.96,659.75,0.61775859]
[1747801880983,0.26353355,660.96,659.76,1.78080908]
[1747801881184,0.26353355,660.96,659.77,1.16305049]
[1747801882088,0.969,660.95,659.49,0.29042344]
[1747801882289,0.969,660.95,659.5,0.61782836]
[1747801882591,0.969,660.95,659.51,1.78111003]
[1747801882788,0.969,660.95,659.52,1.78111003]
[1747801882990,0.969,660.95,659.53,0.61785511]
[1747801883291,0.969,660.95,659.54,1.78111003]
[1747801883491,0.26359942,660.94,659.55,0.61785511]
[1747801883790,0.26359942,660.94,659.56,0.61785511]
[1747801883992,2.25985095,660.91,659.57,1.78111003]
[1747801884186,2.25985095,660.91,659.58,0.61785511]
[1747801884490,2.25985095,660.91,659.59,1.78111003]
[1747801884691,2.25985095,660.91,659.6,1.78111003]
[1747801884892,2.25985095,660.91,659.61,0.61785511]
[1747801885093,2.25985095,660.91,659.62,0.92096268]
[1747801885391,2.25985095,660.91,659.63,0.61785511]
[1747801885593,2.25985095,660.91,659.64,1.78111003]
[1747801885892,2.25985095,660.91,659.65,0.61785511]
[1747801886092,2.25985095,660.91,659.66,0.61785511]
[1747801886292,2.25985095,660.91,659.65,1.16325492]
[1747801886293,2.25985095,660.91,659.67,1.78111003]
[1747801886495,2.25985095,660.92,659.68,0.61785511]
[1747801886694,2.25985095,660.92,659.69,1.78111003]
[1747801886894,2.25985095,660.92,659.7,1.78111003]
[1747801887193,2.25985095,660.92,659.71,0.61785511]
[1747801887392,2.25985095,660.92,659.7,1.16325492]
[1747801887590,2.25985095,660.92,659.71,0.61752719]
[1747801887790,2.25985095,660.92,659.72,1.16325492]
[1747801888496,0.26358345,660.91,659.73,1.16325492]
[1747801888890,0.26358345,660.91,659.74,1.16325492]
[1747801889294,0.26358345,660.91,659.75,1.16325492]
[1747801889496,2.25985095,660.9,659.75,1.16325492]
[1747801889794,2.25985095,660.9,659.76,1.16325492]
[1747801890596,2.25985095,660.9,659.36,0.26358345]
[1747801890796,2.25985095,660.9,659.37,0.61747816]
[1747801890991,2.25985095,660.9,659.38,0.61746628]
[1747801891194,2.25985095,660.9,659.39,1.78001777]
[1747801891395,2.25985095,660.9,659.4,0.61746628]
[1747801891691,2.25985095,660.9,659.41,1.78001777]
[1747801891993,2.25985095,660.9,659.42,0.61746628]
[1747801892194,2.25985095,660.9,659.43,0.61746628]
[1747801892495,2.25985095,660.9,659.44,1.78001777]
[1747801892697,2.25985095,660.9,659.45,0.61746628]
[1747801892891,0.26358345,660.91,659.46,0.61746628]
[1747801893094,0.26358345,660.91,659.47,1.78001777]
[1747801893295,0.26358345,660.91,659.48,0.61746628]
[1747801893495,0.26358345,660.91,659.49,0.61746628]
[1747801893693,0.26358345,660.91,659.5,1.78001777]
[1747801893891,0.26358345,660.91,659.51,0.61746628]
[1747801894092,0.26358345,660.91,659.52,1.78001777]
[1747801894290,0.26358345,660.91,659.53,0.61746628]
[1747801894494,0.26358345,660.91,659.54,1.78001777]
[1747801894698,0.26358345,660.91,659.55,0.61746628]
[1747801894892,0.26358345,660.91,659.56,1.78001777]